[Event "Titled Tuesday Blitz May 4 2021"]
[White "Roebers, Jan"]
[Black "Kovacs, Klara"]
[WhiteFideId "1007815"]
[BlackFideId "733210"]
[WhiteElo "2197"]
[BlackElo "2120"]
[Result "1/2-1/2"]
[Round "11"]
[TimeControl "180+1"]
[Date "2021.05.04"]
[WhiteClock "0:00:52"]
[BlackClock "0:00:09"]

1. e4 {[%clk 0:03:00]}  e6 {[%clk 0:00:44]} 2. d4 {[%clk 0:02:59]}  d5 {[%clk 0:00:43]} 3. Nc3 {[%clk 0:02:59]}  Be7 {[%clk 0:00:44]} 4. Nf3 {[%clk 0:02:54]}  Nf6 {[%clk 0:00:42]} 5. Bd3 {[%clk 0:02:50]}  dxe4 {[%clk 0:00:38]} 6. Nxe4 {[%clk 0:02:49]}  Nxe4 {[%clk 0:00:39]} 7. Bxe4 {[%clk 0:02:49]}  Nd7 {[%clk 0:00:40]} 8. O-O {[%clk 0:02:47]}  Nf6 {[%clk 0:00:40]} 9. Bd3 {[%clk 0:02:47]}  O-O {[%clk 0:00:41]} 10. c3 {[%clk 0:02:47]}  c5 {[%clk 0:00:41]} 11. Qe2 {[%clk 0:02:46]}  b6 {[%clk 0:00:38]} 12. Bg5 {[%clk 0:02:43]}  Bb7 {[%clk 0:00:36]} 13. Rad1 {[%clk 0:02:42]}  cxd4 {[%clk 0:00:35]} 14. cxd4 {[%clk 0:02:40]}  Qd5 {[%clk 0:00:33]} 15. Rfe1 {[%clk 0:02:31]}  h6 {[%clk 0:00:33]} 16. Bxf6 {[%clk 0:02:30]}  Bxf6 {[%clk 0:00:34]} 17. Be4 {[%clk 0:02:30]}  Qd7 {[%clk 0:00:33]} 18. Bxb7 {[%clk 0:02:28]}  Qxb7 {[%clk 0:00:34]} 19. Qe4 {[%clk 0:02:24]}  Qxe4 {[%clk 0:00:32]} 20. Rxe4 {[%clk 0:02:24]}  Rfd8 {[%clk 0:00:33]} 21. Ne5 {[%clk 0:02:21]}  Rac8 {[%clk 0:00:29]} 22. g3 {[%clk 0:02:19]}  Rc2 {[%clk 0:00:27]} 23. Rb1 {[%clk 0:02:10]}  g6 {[%clk 0:00:25]} 24. Kf1 {[%clk 0:02:06]}  Rd2 {[%clk 0:00:21]} 25. Nf3 {[%clk 0:02:04]}  Rc2 {[%clk 0:00:19]} 26. Re2 {[%clk 0:01:59]}  Rxe2 {[%clk 0:00:18]} 27. Kxe2 {[%clk 0:01:59]}  Bxd4 {[%clk 0:00:19]} 28. Nxd4 {[%clk 0:01:56]}  Rxd4 {[%clk 0:00:18]} 29. Rc1 {[%clk 0:01:46]}  Rd7 {[%clk 0:00:18]} 30. b4 {[%clk 0:01:44]}  Kg7 {[%clk 0:00:18]} 31. a4 {[%clk 0:01:42]}  Rd4 {[%clk 0:00:17]} 32. Rc7 {[%clk 0:01:37]}  Rxb4 {[%clk 0:00:16]} 33. Rxa7 {[%clk 0:01:34]}  Rb2+ {[%clk 0:00:16]} 34. Ke1 {[%clk 0:01:33]}  Kf6 {[%clk 0:00:16]} 35. h4 {[%clk 0:01:32]}  h5 {[%clk 0:00:15]} 36. a5 {[%clk 0:01:31]}  bxa5 {[%clk 0:00:14]} 37. Rxa5 {[%clk 0:01:31]}  e5 {[%clk 0:00:15]} 38. Ra7 {[%clk 0:01:30]}  Ke6 {[%clk 0:00:14]} 39. Ra6+ {[%clk 0:01:29]}  Kf5 {[%clk 0:00:14]} 40. Ra7 {[%clk 0:01:28]}  f6 {[%clk 0:00:14]} 41. Ra6 {[%clk 0:01:26]}  e4 {[%clk 0:00:14]} 42. Kf1 {[%clk 0:01:20]}  Rb1+ {[%clk 0:00:10]} 43. Kg2 {[%clk 0:01:19]}  Rb2 {[%clk 0:00:11]} 44. Ra3 {[%clk 0:01:16]}  g5 {[%clk 0:00:11]} 45. hxg5 {[%clk 0:01:14]}  fxg5 {[%clk 0:00:12]} 46. Re3 {[%clk 0:01:09]}  Ke5 {[%clk 0:00:09]} 47. Ra3 {[%clk 0:01:04]}  Re2 {[%clk 0:00:09]} 48. Ra5+ {[%clk 0:01:03]}  Kf6 {[%clk 0:00:09]} 49. Kf1 {[%clk 0:01:03]}  Rb2 {[%clk 0:00:08]} 50. Rc5 {[%clk 0:00:59]}  Rb3 {[%clk 0:00:08]} 51. Kg2 {[%clk 0:00:57]}  e3 {[%clk 0:00:08]} 52. fxe3 {[%clk 0:00:55]}  Rxe3 {[%clk 0:00:08]} 53. Ra5 {[%clk 0:00:54]}  Rb3 {[%clk 0:00:08]} 54. Rc5 {[%clk 0:00:54]}  Kg6 {[%clk 0:00:08]} 55. Ra5 {[%clk 0:00:53]}  h4 {[%clk 0:00:08]} 56. gxh4 {[%clk 0:00:52]}  gxh4 {[%clk 0:00:09]} 1/2-1/2


[Site "https://www.chess.com"]

[Event "Titled Tuesday Blitz May 4 2021"]
[White "Royal, Shreyas"]
[Black "Niyazgulova, Marina"]
[WhiteFideId "448869"]
[BlackFideId "24142573"]
[WhiteElo "1931"]
[BlackElo "2087"]
[Result "0-1"]
[Round "11"]
[TimeControl "180+1"]
[Date "2021.05.04"]
[WhiteClock "0:02:00"]
[BlackClock "0:00:50"]

1. d4 {[%clk 0:03:00]}  d5 {[%clk 0:02:59]} 2. c4 {[%clk 0:03:00]}  c6 {[%clk 0:02:59]} 3. Nf3 {[%clk 0:03:00]}  Nf6 {[%clk 0:02:59]} 4. Nc3 {[%clk 0:03:00]}  dxc4 {[%clk 0:02:59]} 5. a4 {[%clk 0:03:00]}  Bf5 {[%clk 0:02:59]} 6. Ne5 {[%clk 0:03:00]}  Qc7 {[%clk 0:02:56]} 7. Nxc4 {[%clk 0:03:00]}  Nbd7 {[%clk 0:02:56]} 8. g3 {[%clk 0:03:00]}  e5 {[%clk 0:02:55]} 9. dxe5 {[%clk 0:03:01]}  Nxe5 {[%clk 0:02:54]} 10. Bf4 {[%clk 0:03:02]}  Nfd7 {[%clk 0:02:54]} 11. Bg2 {[%clk 0:02:59]}  f6 {[%clk 0:02:54]} 12. O-O {[%clk 0:02:58]}  Nc5 {[%clk 0:02:53]} 13. b4 {[%clk 0:02:53]}  Rd8 {[%clk 0:02:52]} 14. Qe1 {[%clk 0:02:42]}  Nb3 {[%clk 0:02:48]} 15. Ra3 {[%clk 0:02:42]}  Nd4 {[%clk 0:02:45]} 16. e4 {[%clk 0:02:34]}  Nc2 {[%clk 0:02:38]} 17. Qc1 {[%clk 0:02:30]}  Nxa3 {[%clk 0:02:36]} 18. Nxa3 {[%clk 0:02:30]}  Be6 {[%clk 0:02:33]} 19. Ncb5 {[%clk 0:02:27]}  Qb8 {[%clk 0:02:27]} 20. Nc3 {[%clk 0:02:24]}  Bxb4 {[%clk 0:02:23]} 21. Qb2 {[%clk 0:02:24]}  a5 {[%clk 0:02:20]} 22. Nc2 {[%clk 0:02:24]}  Nd3 {[%clk 0:02:03]} 23. Qxb4 {[%clk 0:02:15]}  Nxb4 {[%clk 0:01:33]} 24. Bxb8 {[%clk 0:02:14]}  Rxb8 {[%clk 0:01:33]} 25. Nd4 {[%clk 0:02:13]}  Bc4 {[%clk 0:01:25]} 26. Re1 {[%clk 0:02:13]}  Kf7 {[%clk 0:01:19]} 27. Nf5 {[%clk 0:02:12]}  Rhd8 {[%clk 0:01:16]} 28. Ne3 {[%clk 0:02:10]}  Be6 {[%clk 0:01:13]} 29. f4 {[%clk 0:02:10]}  Rd3 {[%clk 0:01:12]} 30. Ncd1 {[%clk 0:02:08]}  Bb3 {[%clk 0:01:10]} 31. Nf2 {[%clk 0:02:05]}  Rd2 {[%clk 0:01:07]} 32. Nf5 {[%clk 0:02:02]}  Rxf2 {[%clk 0:01:00]} 33. Kxf2 {[%clk 0:02:01]}  Nd3+ {[%clk 0:01:00]} 34. Ke2 {[%clk 0:02:01]}  Nxe1 {[%clk 0:01:00]} 35. Kxe1 {[%clk 0:02:02]}  Bxa4 {[%clk 0:01:01]} 36. Ke2 {[%clk 0:02:03]}  Rd8 {[%clk 0:00:59]} 37. Ne3 {[%clk 0:02:02]}  Bb5+ {[%clk 0:00:59]} 38. Kf3 {[%clk 0:02:01]}  a4 {[%clk 0:00:58]} 39. e5 {[%clk 0:02:01]}  a3 {[%clk 0:00:56]} 40. f5 {[%clk 0:02:00]}  fxe5 {[%clk 0:00:55]} 41. Ke4 {[%clk 0:02:01]}  a2 {[%clk 0:00:54]} 42. Kxe5 {[%clk 0:02:02]}  a1=Q+ {[%clk 0:00:53]} 43. Kf4 {[%clk 0:02:03]}  Qd4+ {[%clk 0:00:52]} 44. Kf3 {[%clk 0:02:02]}  Qd2 {[%clk 0:00:52]} 45. Ng4 {[%clk 0:02:01]}  Qe2+ {[%clk 0:00:50]} 46. Kf4 {[%clk 0:02:00]}  Rd4+ {[%clk 0:00:50]} 47. Kg5 {[%clk 0:02:00]}  Qxg4# {[%clk 0:00:50]} 0-1


[Site "https://www.chess.com"]

[Event "Titled Tuesday Blitz May 4 2021"]
[White "Rustemov, Alexander"]
[Black "Costachi, Mihnea"]
[WhiteFideId "4119002"]
[BlackFideId "1217518"]
[WhiteElo "2644"]
[BlackElo "2479"]
[Result "0-1"]
[Round "11"]
[TimeControl "180+1"]
[Date "2021.05.04"]
[WhiteClock "0:00:06"]
[BlackClock "0:00:08"]

1. d4 {[%clk 0:03:00]}  Nf6 {[%clk 0:02:59]} 2. c4 {[%clk 0:02:59]}  g6 {[%clk 0:03:00]} 3. Nf3 {[%clk 0:02:58]}  Bg7 {[%clk 0:03:00]} 4. g3 {[%clk 0:02:59]}  O-O {[%clk 0:03:01]} 5. Bg2 {[%clk 0:02:59]}  d6 {[%clk 0:03:02]} 6. Nc3 {[%clk 0:03:00]}  Nc6 {[%clk 0:03:03]} 7. O-O {[%clk 0:02:59]}  Bf5 {[%clk 0:03:03]} 8. Ne1 {[%clk 0:02:59]}  e5 {[%clk 0:03:03]} 9. d5 {[%clk 0:02:59]}  Ne7 {[%clk 0:03:03]} 10. e4 {[%clk 0:03:00]}  Bd7 {[%clk 0:03:04]} 11. Nd3 {[%clk 0:02:59]}  Ne8 {[%clk 0:03:04]} 12. Be3 {[%clk 0:02:57]}  f5 {[%clk 0:03:05]} 13. f3 {[%clk 0:02:56]}  Nf6 {[%clk 0:02:51]} 14. Qd2 {[%clk 0:02:41]}  c6 {[%clk 0:02:36]} 15. dxc6 {[%clk 0:02:32]}  bxc6 {[%clk 0:02:32]} 16. c5 {[%clk 0:02:27]}  fxe4 {[%clk 0:02:19]} 17. cxd6 {[%clk 0:02:20]}  exd3 {[%clk 0:02:16]} 18. dxe7 {[%clk 0:02:20]}  Qxe7 {[%clk 0:02:17]} 19. Qxd3 {[%clk 0:02:20]}  Rad8 {[%clk 0:02:06]} 20. Qc4+ {[%clk 0:02:17]}  Qe6 {[%clk 0:02:06]} 21. Qxe6+ {[%clk 0:02:14]}  Bxe6 {[%clk 0:02:06]} 22. Bxa7 {[%clk 0:02:14]}  Rd2 {[%clk 0:02:07]} 23. Rf2 {[%clk 0:02:14]}  Rfd8 {[%clk 0:02:07]} 24. Be3 {[%clk 0:02:11]}  R2d3 {[%clk 0:02:02]} 25. Bg5 {[%clk 0:02:06]}  Rb8 {[%clk 0:01:58]} 26. Bf1 {[%clk 0:02:03]}  Rd7 {[%clk 0:01:51]} 27. Re1 {[%clk 0:02:02]}  Nd5 {[%clk 0:01:51]} 28. Ne4 {[%clk 0:01:53]}  Ra7 {[%clk 0:01:50]} 29. Bc4 {[%clk 0:01:50]}  Nc7 {[%clk 0:01:44]} 30. Bxe6+ {[%clk 0:01:47]}  Nxe6 {[%clk 0:01:45]} 31. b3 {[%clk 0:01:42]}  Nd4 {[%clk 0:01:42]} 32. Bf6 {[%clk 0:01:32]}  Rf8 {[%clk 0:01:29]} 33. Bxg7 {[%clk 0:01:30]}  Kxg7 {[%clk 0:01:29]} 34. Kg2 {[%clk 0:01:29]}  Rfa8 {[%clk 0:01:27]} 35. Nc3 {[%clk 0:01:27]}  Ra5 {[%clk 0:01:27]} 36. f4 {[%clk 0:01:23]}  exf4 {[%clk 0:01:26]} 37. Rxf4 {[%clk 0:01:23]}  Nf5 {[%clk 0:01:25]} 38. g4 {[%clk 0:01:21]}  Nd6 {[%clk 0:01:08]} 39. Re7+ {[%clk 0:01:20]}  Kg8 {[%clk 0:01:03]} 40. Rf6 {[%clk 0:01:12]}  Nb5 {[%clk 0:01:01]} 41. Na4 {[%clk 0:01:09]}  R5a7 {[%clk 0:00:33]} 42. Rxa7 {[%clk 0:01:08]}  Rxa7 {[%clk 0:00:34]} 43. Rxc6 {[%clk 0:01:08]}  Rd7 {[%clk 0:00:35]} 44. Rc2 {[%clk 0:01:06]}  Na3 {[%clk 0:00:35]} 45. Re2 {[%clk 0:01:03]}  Rd4 {[%clk 0:00:35]} 46. Kf3 {[%clk 0:01:01]}  Kf7 {[%clk 0:00:34]} 47. Nc5 {[%clk 0:00:57]}  h5 {[%clk 0:00:31]} 48. gxh5 {[%clk 0:00:55]}  gxh5 {[%clk 0:00:32]} 49. Ke3 {[%clk 0:00:54]}  Rd1 {[%clk 0:00:29]} 50. Ne4 {[%clk 0:00:47]}  Ke6 {[%clk 0:00:24]} 51. Kf4 {[%clk 0:00:43]}  Kf7 {[%clk 0:00:19]} 52. Kg5 {[%clk 0:00:43]}  Rd5+ {[%clk 0:00:18]} 53. Kh6 {[%clk 0:00:38]}  h4 {[%clk 0:00:18]} 54. Ng5+ {[%clk 0:00:37]}  Kf6 {[%clk 0:00:19]} 55. Rf2+ {[%clk 0:00:36]}  Ke7 {[%clk 0:00:17]} 56. Kh5 {[%clk 0:00:35]}  Rd4 {[%clk 0:00:16]} 57. Nf3 {[%clk 0:00:34]}  Rf4 {[%clk 0:00:16]} 58. Re2+ {[%clk 0:00:34]}  Kf6 {[%clk 0:00:14]} 59. Nxh4 {[%clk 0:00:33]}  Nb5 {[%clk 0:00:15]} 60. Ng2 {[%clk 0:00:32]}  Rf3 {[%clk 0:00:13]} 61. Kg4 {[%clk 0:00:30]}  Rf1 {[%clk 0:00:12]} 62. Ne3 {[%clk 0:00:29]}  Rg1+ {[%clk 0:00:11]} 63. Rg2 {[%clk 0:00:29]}  Ra1 {[%clk 0:00:12]} 64. h4 {[%clk 0:00:27]}  Nd4 {[%clk 0:00:12]} 65. h5 {[%clk 0:00:25]}  Re1 {[%clk 0:00:11]} 66. Kf4 {[%clk 0:00:23]}  Ne6+ {[%clk 0:00:11]} 67. Kf3 {[%clk 0:00:22]}  Ng5+ {[%clk 0:00:09]} 68. Kf2 {[%clk 0:00:22]}  Ra1 {[%clk 0:00:09]} 69. Ng4+ {[%clk 0:00:19]}  Kf5 {[%clk 0:00:08]} 70. Ke3 {[%clk 0:00:20]}  Ne6 {[%clk 0:00:05]} 71. h6 {[%clk 0:00:19]}  Nc5 {[%clk 0:00:04]} 72. Kd4 {[%clk 0:00:18]}  Ne6+ {[%clk 0:00:02]} 73. Kc3 {[%clk 0:00:17]}  Ng5 {[%clk 0:00:03]} 74. Ne3+ {[%clk 0:00:18]}  Kg6 {[%clk 0:00:03]} 75. Nd5 {[%clk 0:00:17]}  Rh1 {[%clk 0:00:03]} 76. Nf4+ {[%clk 0:00:16]}  Kf5 {[%clk 0:00:03]} 77. Rf2 {[%clk 0:00:14]}  Ne4+ {[%clk 0:00:04]} 78. Kc4 {[%clk 0:00:13]}  Nxf2 {[%clk 0:00:04]} 79. Nd5 {[%clk 0:00:13]}  Rxh6 {[%clk 0:00:04]} 80. a4 {[%clk 0:00:14]}  Ne4 {[%clk 0:00:04]} 81. b4 {[%clk 0:00:14]}  Rc6+ {[%clk 0:00:04]} 82. Kb5 {[%clk 0:00:14]}  Rc1 {[%clk 0:00:04]} 83. Nb6 {[%clk 0:00:13]}  Ke5 {[%clk 0:00:04]} 84. a5 {[%clk 0:00:14]}  Nd6+ {[%clk 0:00:05]} 85. Ka6 {[%clk 0:00:14]}  Rb1 {[%clk 0:00:04]} 86. Nd7+ {[%clk 0:00:11]}  Ke6 {[%clk 0:00:03]} 87. Nc5+ {[%clk 0:00:08]}  Kd5 {[%clk 0:00:04]} 88. Nd7 {[%clk 0:00:07]}  Rxb4 {[%clk 0:00:03]} 89. Nb6+ {[%clk 0:00:07]}  Kc6 {[%clk 0:00:04]} 90. Ka7 {[%clk 0:00:06]}  Nb5+ {[%clk 0:00:03]} 91. Ka6 {[%clk 0:00:06]}  Nc7+ {[%clk 0:00:04]} 92. Ka7 {[%clk 0:00:06]}  Rb5 {[%clk 0:00:05]} 93. a6 {[%clk 0:00:06]}  Nxa6 {[%clk 0:00:05]} 94. Nc8 {[%clk 0:00:02]}  Nc5 {[%clk 0:00:04]} 95. Ne7+ {[%clk 0:00:02]}  Kd6 {[%clk 0:00:04]} 96. Nf5+ {[%clk 0:00:02]}  Ke5 {[%clk 0:00:04]} 97. Ne3 {[%clk 0:00:02]}  Rb1 {[%clk 0:00:04]} 98. Nc4+ {[%clk 0:00:03]}  Kd4 {[%clk 0:00:04]} 99. Nd6 {[%clk 0:00:03]}  Ra1+ {[%clk 0:00:04]} 100. Kb6 {[%clk 0:00:03]}  Nd3 {[%clk 0:00:05]} 101. Nb5+ {[%clk 0:00:02]}  Ke3 {[%clk 0:00:06]} 102. Nd6 {[%clk 0:00:02]}  Rh1 {[%clk 0:00:06]} 103. Kc6 {[%clk 0:00:03]}  Nf4 {[%clk 0:00:07]} 104. Nf5+ {[%clk 0:00:03]}  Kf3 {[%clk 0:00:06]} 105. Nd4+ {[%clk 0:00:02]}  Ke4 {[%clk 0:00:06]} 106. Nb5 {[%clk 0:00:02]}  Rh6+ {[%clk 0:00:06]} 107. Kc5 {[%clk 0:00:02]}  Nd5 {[%clk 0:00:07]} 108. Nd6+ {[%clk 0:00:02]}  Ke3 {[%clk 0:00:02]} 109. Nc4+ {[%clk 0:00:03]}  Ke4 {[%clk 0:00:02]} 110. Nd6+ {[%clk 0:00:03]}  Kf4 {[%clk 0:00:02]} 111. Kxd5 {[%clk 0:00:04]}  Rh5+ {[%clk 0:00:03]} 112. Kc6 {[%clk 0:00:03]}  Ke3 {[%clk 0:00:04]} 113. Ne8 {[%clk 0:00:02]}  Rh1 {[%clk 0:00:05]} 114. Nd6 {[%clk 0:00:03]}  Rc1+ {[%clk 0:00:05]} 115. Kd7 {[%clk 0:00:04]}  Kd4 {[%clk 0:00:06]} 116. Ke6 {[%clk 0:00:05]}  Re1+ {[%clk 0:00:06]} 117. Kf6 {[%clk 0:00:05]}  Kd5 {[%clk 0:00:07]} 118. Nf5 {[%clk 0:00:06]}  Rf1 {[%clk 0:00:07]} 119. Kg5 {[%clk 0:00:06]}  Ke5 {[%clk 0:00:08]} 120. Ng3 {[%clk 0:00:06]}  Rg1 {[%clk 0:00:09]} 121. Kg4 {[%clk 0:00:07]}  Ra1 {[%clk 0:00:09]} 122. Kf3 {[%clk 0:00:07]}  Ra4 {[%clk 0:00:10]} 123. Ke3 {[%clk 0:00:07]}  Ra3+ {[%clk 0:00:10]} 124. Kf2 {[%clk 0:00:07]}  Kf4 {[%clk 0:00:11]} 125. Ne2+ {[%clk 0:00:07]}  Ke4 {[%clk 0:00:12]} 126. Ng3+ {[%clk 0:00:08]}  Kd4 {[%clk 0:00:11]} 127. Ne2+ {[%clk 0:00:08]}  Ke4 {[%clk 0:00:10]} 128. Ng3+ {[%clk 0:00:08]}  Ke5 {[%clk 0:00:11]} 129. Ne2 {[%clk 0:00:08]}  Rb3 {[%clk 0:00:11]} 130. Ng3 {[%clk 0:00:08]}  Kf4 {[%clk 0:00:11]} 131. Ne2+ {[%clk 0:00:09]}  Kg4 {[%clk 0:00:12]} 132. Nd4 {[%clk 0:00:08]}  Ra3 {[%clk 0:00:11]} 133. Ke2 {[%clk 0:00:08]}  Kf4 {[%clk 0:00:11]} 134. Kd2 {[%clk 0:00:09]}  Ke4 {[%clk 0:00:11]} 135. Nc2 {[%clk 0:00:09]}  Rh3 {[%clk 0:00:11]} 136. Nb4 {[%clk 0:00:08]}  Rg3 {[%clk 0:00:08]} 137. Kc2 {[%clk 0:00:08]}  Kd4 {[%clk 0:00:08]} 138. Na2 {[%clk 0:00:07]}  Rg2+ {[%clk 0:00:08]} 139. Kb3 {[%clk 0:00:07]}  Rg3+ {[%clk 0:00:09]} 140. Kb4 {[%clk 0:00:08]}  Rg2 {[%clk 0:00:07]} 141. Ka4 {[%clk 0:00:06]}  Rxa2+ {[%clk 0:00:07]} 142. Kb3 {[%clk 0:00:06]}  Re2 {[%clk 0:00:08]} 0-1


[Site "https://www.chess.com"]

[Event "Titled Tuesday Blitz May 4 2021"]
[White "Sargsyan, Anna M."]
[Black "Omariev, Maksim"]
[WhiteFideId "13308130"]
[BlackFideId "4193423"]
[WhiteElo "2263"]
[BlackElo "2420"]
[Result "1-0"]
[Round "11"]
[TimeControl "180+1"]
[Date "2021.05.04"]
[WhiteClock "0:00:19"]
[BlackClock "0:00:02"]

1. d4 {[%clk 0:03:00]}  h5 {[%clk 0:02:59]} 2. c4 {[%clk 0:02:59]}  h4 {[%clk 0:03:00]} 3. Nc3 {[%clk 0:02:58]}  d6 {[%clk 0:02:59]} 4. h3 {[%clk 0:02:57]}  e5 {[%clk 0:02:56]} 5. Nf3 {[%clk 0:02:50]}  Nc6 {[%clk 0:02:54]} 6. dxe5 {[%clk 0:02:48]}  Nxe5 {[%clk 0:02:53]} 7. e4 {[%clk 0:02:41]}  Be7 {[%clk 0:02:49]} 8. Be2 {[%clk 0:02:36]}  Nf6 {[%clk 0:02:48]} 9. Nd4 {[%clk 0:02:36]}  Be6 {[%clk 0:02:38]} 10. b3 {[%clk 0:02:35]}  Qd7 {[%clk 0:02:38]} 11. f4 {[%clk 0:02:33]}  Nc6 {[%clk 0:02:28]} 12. f5 {[%clk 0:02:31]}  Nxd4 {[%clk 0:02:28]} 13. Qxd4 {[%clk 0:02:32]}  Bxf5 {[%clk 0:02:26]} 14. exf5 {[%clk 0:02:33]}  Qxf5 {[%clk 0:02:27]} 15. Qd3 {[%clk 0:02:34]}  Qe5 {[%clk 0:02:20]} 16. O-O {[%clk 0:02:33]}  O-O-O {[%clk 0:02:16]} 17. Qf5+ {[%clk 0:02:32]}  Kb8 {[%clk 0:02:12]} 18. Qxe5 {[%clk 0:02:32]}  dxe5 {[%clk 0:02:13]} 19. Be3 {[%clk 0:02:31]}  Bb4 {[%clk 0:02:09]} 20. Rac1 {[%clk 0:02:30]}  Rd7 {[%clk 0:02:05]} 21. Rfd1 {[%clk 0:02:18]}  Rxd1+ {[%clk 0:01:59]} 22. Nxd1 {[%clk 0:02:16]}  Ne4 {[%clk 0:01:55]} 23. c5 {[%clk 0:02:04]}  f5 {[%clk 0:01:45]} 24. Kh2 {[%clk 0:01:42]}  Rd8 {[%clk 0:01:41]} 25. Bf3 {[%clk 0:01:16]}  Nd2 {[%clk 0:01:00]} 26. Bg5 {[%clk 0:01:06]}  Nxf3+ {[%clk 0:00:51]} 27. gxf3 {[%clk 0:01:06]}  Rd5 {[%clk 0:00:49]} 28. Ne3 {[%clk 0:00:58]}  Rd2+ {[%clk 0:00:46]} 29. Kh1 {[%clk 0:00:59]}  f4 {[%clk 0:00:39]} 30. Ng4 {[%clk 0:00:49]}  Rd5 {[%clk 0:00:31]} 31. Bxh4 {[%clk 0:00:44]}  Bxc5 {[%clk 0:00:30]} 32. Re1 {[%clk 0:00:43]}  Bd6 {[%clk 0:00:21]} 33. Re2 {[%clk 0:00:43]}  b5 {[%clk 0:00:17]} 34. Nf2 {[%clk 0:00:42]}  Kb7 {[%clk 0:00:15]} 35. Ne4 {[%clk 0:00:43]}  Kb6 {[%clk 0:00:15]} 36. Bf2+ {[%clk 0:00:42]}  Kb7 {[%clk 0:00:12]} 37. Rc2 {[%clk 0:00:42]}  Rd1+ {[%clk 0:00:11]} 38. Kg2 {[%clk 0:00:42]}  a5 {[%clk 0:00:11]} 39. h4 {[%clk 0:00:41]}  a4 {[%clk 0:00:07]} 40. Nc3 {[%clk 0:00:40]}  Ra1 {[%clk 0:00:03]} 41. Nxb5 {[%clk 0:00:39]}  axb3 {[%clk 0:00:03]} 42. axb3 {[%clk 0:00:40]}  Rb1 {[%clk 0:00:04]} 43. Nxd6+ {[%clk 0:00:38]}  cxd6 {[%clk 0:00:04]} 44. Rd2 {[%clk 0:00:36]}  Rxb3 {[%clk 0:00:02]} 45. Rxd6 {[%clk 0:00:36]}  Kc7 {[%clk 0:00:02]} 46. Re6 {[%clk 0:00:36]}  Rb5 {[%clk 0:00:01]} 47. Re7+ {[%clk 0:00:36]}  Kd6 {[%clk 0:00:01]} 48. Rxg7 {[%clk 0:00:37]}  Ke6 {[%clk 0:00:02]} 49. Rg6+ {[%clk 0:00:36]}  Kf5 {[%clk 0:00:02]} 50. Rg5+ {[%clk 0:00:36]}  Kf6 {[%clk 0:00:03]} 51. Rg8 {[%clk 0:00:36]}  Kf5 {[%clk 0:00:02]} 52. h5 {[%clk 0:00:36]}  e4 {[%clk 0:00:02]} 53. fxe4+ {[%clk 0:00:35]}  Kxe4 {[%clk 0:00:02]} 54. h6 {[%clk 0:00:34]}  Rh5 {[%clk 0:00:03]} 55. Rg6 {[%clk 0:00:33]}  Kf5 {[%clk 0:00:03]} 56. Ra6 {[%clk 0:00:33]}  Kg5 {[%clk 0:00:03]} 57. Kf3 {[%clk 0:00:20]}  Rxh6 {[%clk 0:00:03]} 58. Ra5+ {[%clk 0:00:21]}  Kg6 {[%clk 0:00:03]} 59. Kxf4 {[%clk 0:00:20]}  Rh5 {[%clk 0:00:02]} 60. Ra6+ {[%clk 0:00:20]}  Kf7 {[%clk 0:00:03]} 61. Bd4 {[%clk 0:00:19]}  Rd5 {[%clk 0:00:02]} 62. Be5 {[%clk 0:00:20]}  Rd1 {[%clk 0:00:03]} 63. Kf5 {[%clk 0:00:19]}  Rf1+ {[%clk 0:00:03]} 64. Bf4 {[%clk 0:00:19]}  Ke7 {[%clk 0:00:02]} 65. Ra7+ {[%clk 0:00:19]}  Kd8 {[%clk 0:00:02]} 66. Ke5 {[%clk 0:00:19]} 1-0


[Site "https://www.chess.com"]

[Event "Titled Tuesday Blitz May 4 2021"]
[White "Sarkar, Justin"]
[Black "Wilson, Elvin"]
[WhiteFideId "2010011"]
[BlackFideId "2014874"]
[WhiteElo "2140"]
[BlackElo "2217"]
[Result "1-0"]
[Round "11"]
[TimeControl "180+1"]
[Date "2021.05.04"]
[WhiteClock "0:00:56"]
[BlackClock "0:00:03"]

1. d4 {[%clk 0:02:57]}  Nf6 {[%clk 0:02:58]} 2. g4 {[%clk 0:02:57]}  Nxg4 {[%clk 0:02:50]} 3. e4 {[%clk 0:02:57]}  d5 {[%clk 0:02:46]} 4. Be2 {[%clk 0:02:56]}  Nxf2 {[%clk 0:02:39]} 5. Kxf2 {[%clk 0:02:54]}  dxe4 {[%clk 0:02:39]} 6. Nc3 {[%clk 0:02:50]}  Bf5 {[%clk 0:02:35]} 7. Be3 {[%clk 0:02:36]}  Qd7 {[%clk 0:02:31]} 8. d5 {[%clk 0:02:29]}  g6 {[%clk 0:01:16]} 9. Qd4 {[%clk 0:02:10]}  Rg8 {[%clk 0:01:14]} 10. Bb5 {[%clk 0:02:04]}  c6 {[%clk 0:01:12]} 11. dxc6 {[%clk 0:02:02]}  bxc6 {[%clk 0:01:08]} 12. Qxd7+ {[%clk 0:01:58]}  Kxd7 {[%clk 0:01:03]} 13. Rd1+ {[%clk 0:01:54]}  Kc8 {[%clk 0:01:03]} 14. Bc4 {[%clk 0:01:53]}  e6 {[%clk 0:00:55]} 15. Nge2 {[%clk 0:01:52]}  Nd7 {[%clk 0:00:51]} 16. Ng3 {[%clk 0:01:40]}  Bc5 {[%clk 0:00:48]} 17. Ncxe4 {[%clk 0:01:36]}  Bxe3+ {[%clk 0:00:37]} 18. Kxe3 {[%clk 0:01:36]}  Kc7 {[%clk 0:00:26]} 19. Nxf5 {[%clk 0:01:27]}  gxf5 {[%clk 0:00:25]} 20. Rxd7+ {[%clk 0:01:25]}  Kxd7 {[%clk 0:00:25]} 21. Nf6+ {[%clk 0:01:25]}  Ke7 {[%clk 0:00:25]} 22. Nxg8+ {[%clk 0:01:24]}  Rxg8 {[%clk 0:00:26]} 23. Kf2 {[%clk 0:01:23]}  Rg4 {[%clk 0:00:25]} 24. Be2 {[%clk 0:01:21]}  Rb4 {[%clk 0:00:20]} 25. b3 {[%clk 0:01:19]}  a5 {[%clk 0:00:20]} 26. Bc4 {[%clk 0:01:16]}  a4 {[%clk 0:00:19]} 27. c3 {[%clk 0:01:08]}  Rb8 {[%clk 0:00:16]} 28. bxa4 {[%clk 0:01:07]}  Rb2+ {[%clk 0:00:15]} 29. Ke3 {[%clk 0:01:05]}  e5 {[%clk 0:00:13]} 30. Bb3 {[%clk 0:01:02]}  Kf6 {[%clk 0:00:07]} 31. a5 {[%clk 0:01:00]}  Rg2 {[%clk 0:00:03]} 32. a6 {[%clk 0:00:58]}  Rg8 {[%clk 0:00:02]} 33. Bc4 {[%clk 0:00:57]}  Ra8 {[%clk 0:00:03]} 34. Rb1 {[%clk 0:00:56]} 1-0


[Site "https://www.chess.com"]

[Event "Titled Tuesday Blitz May 4 2021"]
[White "Sergey85Rodchenkov"]
[Black "Samadov, Read"]
[BlackFideId "13417444"]
[WhiteElo "2543"]
[BlackElo "2084"]
[Result "0-1"]
[Round "11"]
[TimeControl "180+1"]
[Date "2021.05.04"]
[WhiteClock "0:00:39"]
[BlackClock "0:01:30"]

1. e4 {[%clk 0:03:00]}  c5 {[%clk 0:03:00]} 2. Nf3 {[%clk 0:03:00]}  d6 {[%clk 0:02:59]} 3. d4 {[%clk 0:03:00]}  cxd4 {[%clk 0:03:00]} 4. Nxd4 {[%clk 0:03:00]}  Nf6 {[%clk 0:03:00]} 5. Nc3 {[%clk 0:03:00]}  a6 {[%clk 0:03:00]} 6. Bc4 {[%clk 0:03:00]}  e6 {[%clk 0:03:00]} 7. Bb3 {[%clk 0:03:00]}  b5 {[%clk 0:02:59]} 8. O-O {[%clk 0:03:00]}  Be7 {[%clk 0:02:59]} 9. f4 {[%clk 0:02:59]}  Qc7 {[%clk 0:02:57]} 10. f5 {[%clk 0:02:58]}  e5 {[%clk 0:02:56]} 11. Nde2 {[%clk 0:02:59]}  Bb7 {[%clk 0:02:55]} 12. Bg5 {[%clk 0:02:57]}  Nbd7 {[%clk 0:02:55]} 13. Bxf6 {[%clk 0:02:57]}  Nxf6 {[%clk 0:02:55]} 14. Ng3 {[%clk 0:02:57]}  h5 {[%clk 0:02:54]} 15. Nd5 {[%clk 0:02:56]}  Bxd5 {[%clk 0:02:48]} 16. Bxd5 {[%clk 0:02:53]}  Rc8 {[%clk 0:02:47]} 17. c3 {[%clk 0:02:50]}  h4 {[%clk 0:02:45]} 18. Ne2 {[%clk 0:02:49]}  Qc5+ {[%clk 0:02:43]} 19. Kh1 {[%clk 0:02:49]}  Nxd5 {[%clk 0:02:42]} 20. exd5 {[%clk 0:02:47]}  h3 {[%clk 0:02:42]} 21. Ng3 {[%clk 0:02:25]}  hxg2+ {[%clk 0:02:39]} 22. Kxg2 {[%clk 0:02:25]}  Qc4 {[%clk 0:02:38]} 23. Qf3 {[%clk 0:02:17]}  Bf6 {[%clk 0:02:28]} 24. Ne4 {[%clk 0:02:16]}  Ke7 {[%clk 0:02:28]} 25. b3 {[%clk 0:02:14]}  Qc7 {[%clk 0:02:24]} 26. a4 {[%clk 0:02:10]}  Qb7 {[%clk 0:02:21]} 27. axb5 {[%clk 0:02:08]}  axb5 {[%clk 0:02:21]} 28. Rfd1 {[%clk 0:02:04]}  Ra8 {[%clk 0:02:20]} 29. Qd3 {[%clk 0:01:54]}  Rh4 {[%clk 0:02:05]} 30. Kg3 {[%clk 0:01:30]}  Rah8 {[%clk 0:01:57]} 31. Nf2 {[%clk 0:00:53]}  Qb6 {[%clk 0:01:44]} 32. h3 {[%clk 0:00:40]}  e4 {[%clk 0:01:31]} 33. Re1 {[%clk 0:00:39]}  Be5+ {[%clk 0:01:30]} 0-1


[Site "https://www.chess.com"]